Cogmind - Beta 16 @@@ ROGUE MODE // 2025.12.10 @ 13:26:41 Player: Jiber Result: Destroyed by as-98464 with Assembled Blade Performance ------------- Evolutions (0) 0 Regions Visited (2) 400 Robots Destroyed (10) 50 Value Destroyed (259) 259 Prototype IDs (0) 0 Alien Tech Used (0) 0 Bonus (0) 0 TOTAL SCORE: 709 Bonus ------- None Cogmind --------- Core Integrity 0/250 Matter 165/300 Energy 100/100 System Corruption 2% Temperature Cool (0) Movement Core (100) Ox1 Location -10/Mines Parts ------- > --- POWER (1) -------- (None) > --- PROPULSION (2) --- Improved Aluminum Leg > --- UTILITY (2) ------ Terrain Scan Processor > --- WEAPON (2) ------- Assault Rifle Rocket Launcher > --- INVENTORY (5) ---- Improved Aluminum Leg Small Storage Unit ECM Suite Peak State ------------ > --- POWER ------------ Light Ion Engine > --- PROPULSION ------- Wheel Compact Wheel > --- UTILITY ---------- Improved Terrain Scanner Terrain Scan Processor > --- WEAPON ----------- EM Pulse Gun Rocket Launcher > --- INVENTORY -------- Improved Aluminum Leg Improved Aluminum Leg Small Storage Unit Assault Rifle [Rating: 11] Favorites ----------- Power Ion Engine Engine Ion Engine Propulsion Compact Wheel Leg Improved Aluminum Leg Wheel Compact Wheel Utility Terrain Scan Processor Device Improved Terrain Scanner Storage Small Storage Unit Processor Terrain Scan Processor Weapon EM Pulse Gun Energy Gun EM Pulse Gun Ballistic Gun Assault Rifle Launcher Rocket Launcher Build | -11 -10 -10 ------- Run | Yrd Mat Min Slots Evolved . | . . . Power . | . . . Propulsion . | . . . Utility . | . . . Weapon . | . . . Parts Attached 14 | 7 6 1 Power 2 | 1 1 . Engine 2 | 1 1 . Core . | . . . Reactor . | . . . Propulsion 5 | 2 2 1 Treads . | . . . Leg 1 | . . 1 Wheel 4 | 2 2 . Hover . | . . . Flight . | . . . Utility 3 | 2 1 . Device 1 | 1 . . Storage 1 | 1 . . Processor 1 | . 1 . Hackware . | . . . Protection . | . . . Artifact . | . . . Weapon 4 | 2 2 . Energy Gun 1 | 1 . . Energy Cannon . | . . . Ballistic Gun 1 | 1 . . Ballistic Cannon . | . . . Launcher 2 | . 2 . Special Weapon . | . . . Impact Weapon . | . . . Slashing Weapon . | . . . Piercing Weapon . | . . . Special Melee Weapon . | . . . Unidentified Prototypes . | . . . Parts Lost 5 | . . 5 Power 1 | . . 1 Propulsion 2 | . . 2 Utility 1 | . . 1 Weapon 1 | . . 1 Highest Loss Streak 5 | . . 5 To Critical Strikes . | . . . Average Backups 3 | . 4 4 Power . | . . . Propulsion 1 | . 1 1 Utility 1 | . 1 2 Weapon . | . . . Tool/Special . | . . . Unused Backups 2 | . . 2 Power . | . . . Propulsion 1 | . . 1 Utility 1 | . . 1 Weapon . | . . . Tool/Special . | . . . Average Slot Usage (%) 96 | . 100 79 Engine 13 | . 14 8 Leg 1 | . . 8 Wheel 25 | . 28 14 Device 12 | . 14 6 Storage 1 | . 1 . Processor 12 | . 12 14 Energy Gun 12 | . 14 6 Ballistic Gun 2 | . 1 8 Launcher 12 | . 12 14 Peak Build Rating 11 | 9 11 11 Average Rating 9 | 4 10 8 On Entrance 6 | . 9 11 Avg Prop Armor Cover (%) 11 | . . 11 Naked Turns . | . . . Heaviest Build 13 | 13 13 12 Greatest Support 32 | 26 32 26 Greatest Overweight (x) 1 | . . 1 Average Overweight (x) . | . . . Largest Inventory Capacity 8 | 8 8 5 Average Capacity 5 | 6 5 5 Most Carried 5 | 5 5 5 Average Carried 3 | . 4 3 Final Capacity 8 | 8 5 5 Final Carried 5 | . 5 3 Class Distribution -------------------- 100% | Mutant Dominant Class ---------------- Mutant | -10/Materials Mutant | -10/Mines Resources | -11 -10 -10 ----------- Run | Yrd Mat Min Matter Collected 456 | 230 226 . Remotely . | . . . Salvage Created 318 | 64 192 62 Parts 19 | 7 12 . Haulers Intercepted . | . . . Recyclers Shooed 2 | 1 1 . Parts Field Recycled . | . . . Retrieved Matter . | . . . Parts Self-Destructed . | . . . Prevented . | . . . Parts Restored . | . . . Kills | -11 -10 -10 ------- Run | Yrd Mat Min Combat Hostiles Destroyed 25 | . 8 17 Guns 4 | . 3 1 AOE 21 | . 5 16 Classes Destroyed 5 | 2 2 1 Tunneler 1 | 1 . . Recycler 1 | 1 . . Swarmer 3 | . 3 . Grunt 5 | . 5 . Assembled 17 | . . 17 Best Kill Streak 17 | 2 5 17 Combat Bots Only 17 | . 5 17 Max Kills in Single Turn 4 | 1 2 4 Gunslinging . | . . . Exploded 3 | . 2 3 Melee . | . . . Uniques/NPCs Destroyed . | . . . Combat | -11 -10 -10 -------- Run | Yrd Mat Min Hostile Shots Fired 57 | . 19 38 Missed 17 | . 3 14 Hits 40 | . 16 24 Melee 6 | . . 6 Projectile 34 | . 16 18 Part Disruptions 1 | . . 1 Damage Taken 752 | 28 221 503 Core 264 | . 92 172 Absorbed by Shields . | . . . Core Remaining (%) 100 | 100 . . Volleys Fired 34 | 7 13 14 Largest 2 | 2 2 2 Hottest 73 | 60 73 73 Shots Fired 61 | 14 25 22 Gun 40 | 14 13 13 Cannon . | . . . Launcher 21 | . 12 9 Special . | . . . Kinetic 16 | 7 . 9 Thermal . | . . . Explosive 21 | . 12 9 Electromagnetic 24 | 7 13 4 Robot Hit Streak 5 | 4 5 4 Robot Miss Streak 5 | 2 5 5 Penetration Max . | . . . Secondary Targets . | . . . Shots Hit Robots 28 | 10 12 6 Core Hits 40 | 2 12 26 Critical Kills . | . . . Critical Parts Destroyed . | . . . Critical Strikes . | . . . Melee Attacks . | . . . Impact . | . . . Slashing . | . . . Piercing . | . . . Sneak Attacks . | . . . Combat Hostiles . | . . . Follow-up Attacks . | . . . Damage Inflicted 1762 | 132 563 1067 Guns 248 | 110 86 52 Cannons . | . . . Explosions 1503 | 22 466 1015 Melee . | . . . Ramming 11 | . 11 . Kinetic 75 | 46 . 29 Thermal 79 | 22 57 . Explosive 1424 | . 409 1015 Electromagnetic 173 | 64 86 23 Impact . | . . . Slashing . | . . . Piercing . | . . . Highest Corruption 2 | . . 2 Average Corruption 2 | . . 2 Corruption Purged . | . . . Corruption Blocked . | . . . Effects 1 | . . 1 Weapon Failures 1 | . . 1 Overload Shots . | . . . Overflow Damage 51 | . 9 42 Projectiles . | . . . Explosions 51 | . 9 42 Melee . | . . . Knockbacks . | . . . Impact . | . . . Kinetic . | . . . Secondary . | . . . Self-Inflicted Damage 164 | 29 48 87 Shots 4 | 1 1 2 Rammed 4 | . 4 . Targets Rammed 4 | . 4 . Kicked . | . . . Crushed . | . . . Highest Temperature 63 | 12 63 36 Average Temperature 20 | 12 23 16 Received Heat Transfer 140 | . 60 80 Siege Activations . | . . . Martial Activations . | . . . Shielding Activations . | . . . Robots Disrupted . | . . . Combat Hostiles . | . . . Robots Corrupted . | . . . Combat Hostiles . | . . . Parts Fried . | . . . Impact Corruptions . | . . . Robots Melted . | . . . Combat Hostiles . | . . . Parts Melted . | . . . Heat Transferred 50 | 50 . . Parts Sabotaged . | . . . Parts Stolen . | . . . Parts Stripped . | . . . Power Chain Reactions 2 | 1 1 . Alert | -11 -10 -10 ------- Run | Yrd Mat Min Maximum Alert Level 1 | . 1 . Low Security (%) 73 | 100 63 100 Level 1 26 | . 36 . Level 2 . | . . . Level 3 . | . . . Level 4 . | . . . Level 5 . | . . . High Security . | . . . Max Security . | . . . Peak Influence 242 | 5 242 89 Initial 69 | . 3 69 Average 108 | . 139 58 Influence Increases 380 | 10 319 51 Destroy 0b10 Robot/C 160 | . 160 . Destroy 0b10 Robot/NC 10 | 10 . . Destroy Leader 40 | . 40 . Disable Machine 30 | . 30 . Destroy Structure 140 | . 89 51 Influence Decreases 330 | 5 145 180 Entered New Map 112 | . 2 110 Time Decay 168 | 5 143 20 Lost Part 50 | . . 50 Squads Dispatched 2 | . 2 . Investigation 1 | . 1 . Extermination . | . . . Reinforcement 1 | . 1 . Assault . | . . . Garrison . | . . . Intercept . | . . . Searches Triggered . | . . . Construction Impeded . | . . . Haulers Reinforced . | . . . Active Scanning Responses . | . . . Cargo Convoy Interrupts . | . . . Stealth | -11 -10 -10 --------- Run | Yrd Mat Min Distress Signals 1 | . 1 . Communications Jammed . | . . . Distress Signals . | . . . Times Spotted 25 | . 8 17 Peak Tracking Total 16 | . 3 16 Tactical Retreats . | . . . Traps | -11 -10 -10 ------- Run | Yrd Mat Min Traps Triggered . | . . . Indirectly . | . . . Trap Hack Attempts . | . . . Triggered . | . . . Disarmed . | . . . Reprogrammed . | . . . Reused . | . . . Traps Extracted . | . . . Installed . | . . . Triggered . | . . . Machines | -11 -10 -10 ---------- Run | Yrd Mat Min Machines Disabled 2 | . 2 . Max in Single Turn 1 | . 1 . Machines Repaired . | . . . Machines Dismantled . | . . . Machines Sabotaged . | . . . Overloaded Fab Kills . | . . . Hacking | -11 -10 -10 --------- Run | Yrd Mat Min Machines Accessed . | . . . Terminals . | . . . Fabricators . | . . . Repair Stations . | . . . Recycling Units . | . . . Scanalyzers . | . . . Garrison Access . | . . . Total Hacks . | . . . Successful . | . . . Failed . | . . . Catastrophic . | . . . Database Lockouts . | . . . Manual . | . . . Terminals . | . . . Fabricators . | . . . Repair Stations . | . . . Recycling Units . | . . . Scanalyzers . | . . . Garrison Access . | . . . Terminal Hacks . | . . . Fabricator Hacks . | . . . Repair Station Hacks . | . . . Recycling Unit Hacks . | . . . Scanalyzer . | . . . Garrison Access Hacks . | . . . Unauthorized Hacks . | . . . Terminals . | . . . Fabricators . | . . . Repair Stations . | . . . Recycling Units . | . . . Scanalyzers . | . . . Garrison Access . | . . . Data Cores Recovered . | . . . Used . | . . . Hacking Detections . | . . . Full Trace Events . | . . . Feedback Events . | . . . Feedback Blocked . | . . . Robot Schematics Acquired . | . . . Robots Built . | . . . Authchips . | . . . Time . | . . . Total Robot Build Rating . | . . . Part Schematics Acquired . | . . . Parts Built . | . . . Authchips . | . . . Time . | . . . Total Part Build Rating . | . . . Part Studies Acquired . | . . . Parts Repaired . | . . . Time . | . . . Parts Recycled . | . . . Recycled Matter . | . . . Retrieved Matter . | . . . Retrieved Components . | . . . Parts Scanalyzed . | . . . Part Schematics Acquired . | . . . Parts Damaged . | . . . Bothacking | -11 -10 -10 ------------ Run | Yrd Mat Min Used RIF Installer . | . . . Robots Hacked . | . . . Non-combat . | . . . Combat . | . . . Robot Hacks Applied . | . . . Relay Couplers Released . | . . . Fabnet Peak Effective % . | . . . Robots Rewired . | . . . Allies Hacked . | . . . Hacks Repelled . | . . . Allies | -11 -10 -10 -------- Run | Yrd Mat Min Total Allies . | . . . Largest Group . | . . . Highest-Rated Group . | . . . Highest-Rated Ally . | . . . Total Orders . | . . . Ally Attacks . | . . . Total Damage . | . . . Kills . | . . . Allies Corrupted . | . . . Allies Melted . | . . . Intel | -11 -10 -10 ------- Run | Yrd Mat Min Active Infowar (turns) 330 | 3 327 . Terrain 330 | 3 327 . Robot Analysis Total . | . . . Derelict Logs Recovered . | . . . Drone Launches . | . . . Drone Recoveries . | . . . Exploration | -11 -10 -10 ------------- Run | Yrd Mat Min Turns Passed 499 | 79 364 56 Spaces Moved 409 | 60 330 19 Core 29 | 23 . 6 Treads . | . . . Legs . | . . . Wheels 380 | 37 330 13 Hover . | . . . Flight . | . . . Fastest Speed 50 | 50 90 90 Average Speed 90 | 74 93 93 Slowest Speed 100 | 90 100 100 Overloaded Moves . | . . . Propulsion Burnouts . | . . . Robots Hopped . | . . . Potential Cave-ins . | . . . Cave-ins Triggered . | . . . Exploration Rate (%) 22 | 3 47 17 Regions Visited 2 Branch Regions 1 Pre-discovered Areas . | . . . Known Exits Taken . | . . . Unknown Exits Taken 2 | 1 1 . Scrap Searched . | . . . Spaces Dug 7 | . 7 . Terrain Destroyed 185 | . 110 75 Melee . | . . . Projectile . | . . . AOE 185 | . 110 75 Terrain Rammed . | . . . Walls Destroyed . | . . . Machines Disabled . | . . . Actions | -11 -10 -10 --------- Run | Yrd Mat Min Total 476 | 80 361 35 Wait . | . . . Move 407 | 59 329 19 Hop . | . . . Pick Up 12 | 7 5 . Fast Attach . | . . . Attach 9 | 7 . 2 Detach . | . . . Swap 6 | . 6 . Drop 4 | . 4 . Fire 34 | 7 13 14 Melee . | . . . Ram 4 | . 4 . Kick . | . . . Crush . | . . . Escape Stasis . | . . . Rewire . | . . . Trap . | . . . Miscellaneous . | . . . Route ------- -11/Scrapyard -10/Materials (discovered 2 exits: [*Mat] / [*Min]) -10/Mines History --------- Turn | Location | Event 5 | -11/Scrapyard | Discovered new exit (range 15) 80 | -11/Scrapyard | Entered Materials 81 | -10/Materials | Met a group of wandering Federalists 263 | -10/Materials | Discovered new exit (range 16) 305 | -10/Materials | Build established: Mutant 363 | -10/Materials | Discovered new exit (range 15) 444 | -10/Materials | Entered Mines 450 | -10/Mines | Assembled infested the area 470 | -10/Mines | Core integrity fell below 50% 493 | -10/Mines | Core integrity fell below 20% 500 | -10/Mines | Destroyed by as-98464 with Assembled Blade Last Messages --------------- 00465_ as-86203 destroyed. 00465_ as-52829 destroyed. 00466_ Imp. Terrain Scanner destroyed. 00466_ System corrupted by crushing effect (+2). 00466_ Knocked back. 00467_ EM Pulse Gun destroyed. 00467_ Com. Wheel destroyed. 00470_ as-13250 destroyed. 00470_ Ion Engine destroyed. 00470_ Destroyed Ion Engine. 00473_ as-48216 destroyed. 00475_ Wheel destroyed. 00476_ Destroyed Asb. Heavy Rifle. 00476_ as-50585 destroyed. 00476_ as-77621 destroyed. [Achievement: Exterminator] 00482_ The unstable cave ceiling collapses. 00492_ as-09511 destroyed. 00492_ as-57622 destroyed. 00499_ System corrupted: Assault Rifle jammed. Map ----- +----------------------------------------------------+ | ?????????????????????????????????????????????????? | | ?????????????????????????????????????????????????? | | ?????????????????????????????????????????????????? | | ??????????????????????????????? ?????????????????? | | ????????????????????????????? ##??????????????? | | ????????????????????????????? # #?????????????? | | ????????????????????????????? #????????????? | | ??????????????????????????### ##???????????? | | ???????? #??????????????? ##??????????? | | ??????? ###???????????## #??????????? | | ???????? #??????????# # #??????????? | | ????????# ##????????# ##?????????? | | ?????????# ##??????? ##?????????? | | ??????????# #??????? # % ??????????? | | ???????????# #??????## #???????????? | | ????????????# #?###### ##??????????? | | ?????????????# #?# #####??????? | | ??????????????# ### #??????? | | ??????????????# ## ### ????? | | ??????????????# ## ### ????? | | ??????????????# ## %* #### ?????? | | ?????????????# # #####????????????? | | ????????????# ##### a ####????????????????? | | ????????? ##???# #??????????????????? | | ??????# ##???## a ##??????????????????? | | ??????###### ##????# @ #??????????????????? | | ??????????# ##??????# #?????????????????? | | ??????????####??????? #?????????????????? | | ??????????????????? ##?????????????????? | | ?????????????????# ###??????????????????? | | ?????????????????## ##????????????????????? | | ??????????????????##########?????????????????????? | | ?????????????????????????????????????????????????? | | | | | | | | | | | | | | | | | | | | | | | | | | | | | | | | | | | +----------------------------------------------------+ Best States ------------- Heat Dissipation 25 Energy Generation 10 Energy Capacity 250 Matter Stores 300 Matter Capacity 300 Sight Range 16 Terrain Scan Range 16 Terrain Scan Density 85 Evasion (%) 50 Item Schematics ----------------- None Robot Schematics ------------------ None Fabricated ------------ Nothing Repaired ---------- Nothing Studied --------- None Alien Tech Used ----------------- None Achievements -------------- Exterminator Challenges ------------ None Game ------ Seed DisassembledAlloyMinigun Manual? 0 Play Time 00:07:09 Cumulative 41.0 hours Start 2025.12.06 @ 12:50:59 End 2025.12.10 @ 13:26:41 Sessions 2 Manual Loads 0 Difficulty Rogue Special Mode None Game No. 54 Rogue 54 Adventurer 0 Explorer 0 Win Type - Total 0 Types 0/0/0/0/0/0/0/0/0/0 Lore% 17 Gallery% 34 Achievement% 22 Wizard Run 0 Options --------- Layout 1 ASCII 0 Keyboard 0 Movement Mouse Keybinds 0 Fullscreen 2 Font 32/SmallcapsGlow Map View 50x35 Zoom Use 0% Tactical HUD 1 Map Filters NONE Filters NONE Steam 1 RUN: 1e74caf9-3ee3-4aeb-bcf5-34a41e49be76